bitfinex-derivatives/quotes_ETHF0:USTF0_20220103
["timestamp","ask_amount","ask_price","bid_price","bid_amount"]
[1641222214240,1.5,3806.0,3804.9,2.00479]
[1641222214440,2.61310888,3805.7,3804.9,2.00479]
[1641222215040,2.00479,3805.5,3804.9,2.00479]
[1641222216542,2.00479,3805.5,3805.0,0.128157]
[1641222216744,2.00479,3805.5,3804.9,2.00479]
[1641222216943,2.67379,3805.5,3804.9,2.00479]
[1641222217145,11.24,3805.4,3804.9,2.00479]
[1641222217347,0.128157,3805.3,3804.9,2.00479]
[1641222218349,0.128157,3805.3,3804.4,0.88688548]
[1641222218547,1.628157,3805.3,3804.4,0.88688548]
[1641222218749,0.128157,3805.3,3804.4,0.88688548]
[1641222218947,2.61348638,3805.2,3804.4,0.88688548]
[1641222219147,2.00479,3804.6,3804.4,0.88688548]
[1641222219349,2.61348638,3805.2,3804.5,0.025592]
[1641222219547,2.61348638,3805.2,3804.3,0.88688548]
[1641222219748,4.11348638,3805.2,3804.3,0.88688548]
[1641222219949,2.61348638,3805.2,3804.3,0.88688548]
[1641222220648,0.128157,3805.3,3804.3,0.88688548]
[1641222220849,0.128157,3805.3,3804.4,0.88688548]
[1641222221252,0.128157,3805.3,3804.8,2.00479]
[1641222221654,0.128157,3805.3,3804.5,0.128157]
[1641222222754,1.628157,3805.3,3803.1,5.48]
[1641222222957,13.8536786,3804.9,3803.1,5.48]
[1641222223158,13.8536786,3804.9,3804.8,0.88646338]
[1641222223354,12.969991,3804.9,3804.8,0.88646338]
[1641222223554,15.58412968,3804.9,3804.2,1.47772267]
[1641222223756,11.469991,3804.9,3803.7,0.74249486]
[1641222223956,0.229991,3804.9,3803.7,0.74249486]
[1641222224257,2.6138022,3804.7,3803.7,0.74249486]
[1641222224455,2.6138022,3804.7,3804.0,1.308]
[1641222225256,2.6138022,3804.7,3804.2,1.308]
[1641222225257,2.00479,3804.3,3804.2,1.308]
[1641222225464,2.362938,3804.3,3804.2,1.333592]
[1641222225658,2.132947,3804.3,3804.2,1.308]
[1641222226057,2.132947,3804.3,3803.4,2.00479]
[1641222226658,2.132947,3804.3,3804.1,1.308]
[1641222226859,0.229991,3804.2,3803.4,2.00479]
[1641222227459,2.132947,3804.3,3803.4,2.00479]
[1641222228264,2.324947,3804.3,3803.4,2.00479]
[1641222228468,0.192,3803.5,3803.0,2.63491386]
[1641222228663,0.192,3803.1,3802.0,2.97130659]
[1641222228864,2.61499747,3803.0,3802.0,2.97130659]
[1641222229264,2.00479,3802.7,3802.0,2.97130659]
[1641222229671,2.00479,3802.7,3802.6,1.308]
[1641222229965,2.234781,3802.7,3802.6,1.308]
[1641222230167,2.234781,3802.7,3802.0,2.97130659]
[1641222230366,2.234781,3802.7,3802.6,1.308]
[1641222230768,2.00479,3802.7,3802.6,1.333592]
[1641222230966,2.00479,3803.1,3802.6,1.333592]
[1641222231167,2.00479,3803.1,3803.0,1.308]
[1641222231369,2.00479,3803.1,3802.5,0.6195]
[1641222231767,2.00479,3803.1,3802.3,2.00479]
[1641222232167,2.00479,3803.1,3802.5,1.308]
[1641222232366,2.00479,3803.1,3802.3,2.00479]
[1641222232567,2.00479,3803.1,3803.0,1.308]
[1641222232767,2.234781,3803.1,3803.0,1.308]
[1641222233372,2.234781,3803.1,3802.3,2.00479]
[1641222233769,2.234781,3803.1,3802.4,1.47831682]
[1641222234170,2.00479,3803.1,3803.0,1.308]
[1641222234370,2.234781,3803.1,3803.0,0.8173]
[1641222234769,2.00479,3803.1,3803.0,0.8173]
[1641222235172,2.234781,3803.1,3803.0,0.8173]
[1641222235371,2.00479,3803.1,3802.8,1.308]
[1641222235574,2.00479,3803.1,3802.5,1.18268138]
[1641222235773,2.00479,3803.1,3802.6,1.308]
[1641222236173,2.00479,3803.1,3802.9,1.308]
[1641222236374,2.00479,3803.1,3803.0,0.025592]
[1641222237073,2.00479,3803.1,3803.0,1.333592]
[1641222237273,2.00479,3803.1,3803.0,0.025592]
[1641222237473,2.234781,3803.1,3802.7,1.18268138]
[1641222237674,2.00479,3803.1,3802.7,1.18268138]
[1641222237873,2.00479,3803.1,3802.7,2.49068138]
[1641222238076,2.00479,3803.1,3802.7,1.308]
[1641222238477,2.00479,3803.1,3802.6,1.18268138]
[1641222238676,2.00479,3803.1,3802.7,2.49068138]
[1641222239682,2.00479,3803.1,3802.7,1.18268138]
[1641222239980,2.00479,3803.1,3803.0,1.308]
[1641222240181,2.00479,3803.1,3803.0,1.333592]
[1641222240781,2.234781,3803.1,3803.0,1.308]
[1641222241082,2.00479,3803.1,3803.0,1.333592]
[1641222241383,2.00479,3803.1,3803.0,1.308]
[1641222241984,2.234781,3803.1,3802.8,0.529]
[1641222242385,2.234781,3803.1,3802.9,0.025592]
[1641222242586,2.234781,3803.1,3802.8,1.71168138]
[1641222242786,2.234781,3803.1,3803.0,1.308]
[1641222242987,2.00479,3803.1,3803.0,1.308]
[1641222243389,2.00479,3803.1,3803.0,1.333592]
[1641222243588,2.00479,3803.6,3803.0,1.333592]
[1641222243788,2.00479,3803.6,3803.0,0.025592]
[1641222243991,2.00479,3803.6,3803.4,1.308]
[1641222244189,0.229991,3803.5,3803.4,1.308]
[1641222244390,2.00479,3803.6,3803.4,1.308]
[1641222244391,2.00479,3803.6,3803.4,1.333592]
[1641222245196,32.06445455,3804.9,3803.4,1.333592]
[1641222245392,1.14235455,3804.9,3803.4,0.025592]
[1641222245594,2.00479,3804.2,3804.0,1.308]
[1641222245791,2.00479,3804.2,3804.1,0.025592]
[1641222245993,2.234781,3804.2,3804.0,0.5737]
[1641222246191,2.00479,3804.2,3804.1,1.308]
[1641222246393,2.00479,3804.2,3804.0,0.5737]
[1641222246791,2.00479,3804.2,3804.1,0.025592]
[1641222246994,2.234781,3804.2,3804.0,0.5737]
[1641222247191,2.234781,3804.2,3804.0,1.46058611]
[1641222247594,2.234781,3804.2,3804.0,1.48617811]
[1641222247793,2.00479,3804.2,3804.0,1.48617811]
[1641222247995,2.234781,3804.2,3804.0,1.46058611]
[1641222248195,2.234781,3804.2,3804.0,0.5737]
[1641222248496,2.00479,3804.2,3804.1,0.025592]
[1641222248695,2.00479,3804.2,3804.0,0.5737]
[1641222250200,2.00479,3804.2,3804.1,0.025592]
[1641222250399,2.00479,3804.6,3804.1,1.333592]
[1641222250700,2.00479,3804.6,3804.5,1.308]
[1641222251100,2.00479,3804.6,3804.5,1.333592]
[1641222251500,2.00479,3804.6,3804.5,0.025592]
[1641222251700,2.234781,3804.6,3804.5,1.308]
[1641222251899,2.00479,3804.6,3804.5,1.308]
[1641222252101,2.00479,3804.6,3804.5,1.333592]
[1641222252503,2.00479,3804.6,3804.5,2.22047811]
[1641222252701,2.00479,3804.6,3804.5,2.77734434]
[1641222254301,2.00479,3804.6,3804.5,2.75175234]
[1641222254500,2.00479,3804.6,3804.5,2.77734434]
[1641222254701,2.00479,3804.6,3804.5,2.22047811]
[1641222254902,2.00479,3804.6,3804.5,1.333592]
[1641222255104,2.00479,3805.2,3804.5,1.333592]
[1641222255105,2.00479,3805.2,3804.5,2.833592]
[1641222255304,2.00479,3805.2,3805.1,1.308]
[1641222255501,2.234781,3805.2,3805.1,0.6279]
[1641222255701,2.00479,3805.2,3805.1,0.6279]
[1641222256302,2.234781,3805.2,3805.1,0.6279]
[1641222256502,2.234781,3805.2,3804.7,2.19488611]
[1641222256704,2.00479,3805.2,3804.7,2.19488611]
[1641222257707,2.00479,3805.2,3804.7,0.88688611]
[1641222257909,0.192,3805.0,3804.7,0.88688611]
[1641222258106,0.229991,3804.9,3804.7,0.88688611]
[1641222258607,0.229991,3804.9,3804.2,2.89167611]
[1641222259607,0.229991,3804.9,3804.2,2.00479]
[1641222261310,0.229991,3804.9,3804.0,0.88688611]
[1641222261507,2.00479,3804.6,3804.0,2.19488611]
[1641222261808,2.00479,3805.2,3804.5,1.308]
[1641222262010,2.00479,3805.2,3805.1,1.308]
[1641222262212,2.234781,3805.2,3805.1,1.308]
[1641222262408,2.00479,3805.2,3805.1,1.333592]
[1641222262608,2.00479,3805.2,3805.1,1.308]
[1641222263208,2.234781,3805.2,3805.1,1.308]
[1641222263409,2.234781,3805.2,3804.4,0.88688611]
[1641222263609,2.234781,3805.2,3804.2,1.308]
[1641222263610,2.234781,3805.2,3804.9,0.88688611]
[1641222263809,0.128157,3805.1,3804.9,0.88688611]
[1641222264211,0.229991,3805.0,3804.9,0.88688611]
[1641222264812,0.229991,3805.0,3804.7,0.88688611]
[1641222265610,2.00479,3804.8,3804.5,0.88688611]
[1641222265811,0.229991,3804.7,3804.6,0.025592]
[1641222266012,2.00479,3804.8,3804.6,0.025592]
[1641222266412,2.00479,3804.8,3804.6,1.44378209]
[1641222266811,0.229991,3804.7,3804.6,1.44378209]
[1641222267211,0.229991,3804.7,3804.6,0.88688611]
[1641222267811,2.00479,3804.8,3804.6,0.88688611]
[1641222268413,2.00479,3804.8,3804.7,0.025592]
[1641222269314,2.00479,3804.8,3804.6,0.88688611]
[1641222269513,2.234781,3804.8,3804.6,0.88688611]
[1641222270314,2.234781,3804.8,3804.6,0.91247811]
[1641222270716,2.234781,3804.8,3804.6,0.88688611]
[1641222271117,2.00479,3804.8,3804.7,0.025592]
[1641222271917,2.00479,3804.8,3804.7,1.333592]
[1641222272118,2.00479,3804.8,3804.7,1.973392]
[1641222272718,2.00479,3804.8,3804.7,3.41715777]
[1641222273119,2.00479,3804.8,3804.7,2.08356577]
[1641222273317,2.234781,3804.8,3804.7,2.08356577]
[1641222274422,2.00479,3804.8,3804.7,2.10915777]
[1641222274621,2.00479,3804.8,3804.7,3.41715777]
[1641222274824,2.00479,3804.8,3804.7,2.86027811]
[1641222275022,2.00479,3804.8,3804.7,0.665392]
[1641222275224,2.234781,3804.8,3804.6,0.88688611]
[1641222275422,2.00479,3804.8,3804.7,0.025592]
[1641222275624,2.00479,3804.8,3804.7,2.035692]
[1641222275822,2.00479,3804.8,3804.7,2.92257811]
[1641222276222,2.00479,3804.8,3804.7,1.61457811]
[1641222276522,2.00479,3804.8,3804.7,2.92257811]
[1641222276923,2.00479,3804.8,3804.7,2.59257221]
[1641222280025,2.00479,3804.8,3804.7,3.77693844]
[1641222280525,2.234781,3804.8,3804.7,3.75134644]
[1641222280729,2.234781,3804.8,3804.7,2.56698021]
[1641222280927,2.00479,3804.8,3804.7,2.56698021]
[1641222281626,2.234781,3804.8,3804.7,2.56698021]
[1641222281826,2.00479,3804.8,3804.7,2.59257221]
[1641222282028,2.00479,3804.8,3804.7,3.77694872]
[1641222282226,0.128157,3805.1,3804.7,3.77694872]
[1641222282426,0.128157,3805.1,3805.0,1.308]
[1641222282926,2.00479,3805.2,3805.0,1.333592]
[1641222283125,2.00479,3805.2,3805.0,1.308]
[1641222283528,2.00479,3805.2,3805.0,1.86488021]
[1641222283726,2.00479,3805.2,3805.1,0.025592]
[1641222283928,2.00479,3805.2,3805.0,1.86488021]
[1641222284327,2.00479,3805.2,3805.1,1.44512456]
[1641222284527,2.234781,3805.2,3805.1,1.44512456]
[1641222284926,2.00479,3805.2,3805.1,1.44512456]
[1641222285128,2.00479,3805.2,3805.1,0.58247221]
[1641222285728,0.3893,3805.6,3805.1,0.58247221]
[1641222285929,0.3893,3805.6,3805.5,1.308]
[1641222286131,0.619291,3805.6,3805.5,1.333592]
[1641222286330,0.3893,3805.6,3805.5,1.308]
[1641222287133,0.619291,3805.6,3805.5,1.44547035]
[1641222288332,0.619291,3805.6,3805.5,0.55688021]
[1641222288531,0.619291,3805.6,3805.4,0.88859014]
[1641222289333,0.229991,3805.5,3805.2,0.88859014]
[1641222290234,0.229991,3805.5,3805.3,0.91418214]
[1641222290433,0.229991,3805.5,3805.4,1.308]
[1641222290635,0.3893,3805.6,3805.4,1.308]
[1641222290833,0.229991,3805.5,3805.3,0.88859014]
[1641222291035,0.229991,3805.5,3805.3,2.75347035]
[1641222291434,0.3893,3805.6,3805.4,0.025592]
[1641222291835,0.3893,3805.6,3805.5,1.308]
[1641222292837,0.619291,3805.6,3805.4,1.44547035]
[1641222293038,0.619291,3805.6,3805.5,1.44547035]
[1641222293841,0.619291,3805.6,3805.4,0.88859014]
[1641222294039,0.3893,3805.6,3805.5,0.025592]
[1641222294438,0.3893,3805.6,3805.5,1.333592]
[1641222295040,0.3893,3805.6,3805.5,0.025592]
[1641222295240,0.619291,3805.6,3805.4,2.19659014]
[1641222295641,0.619291,3805.6,3805.4,0.88859014]
[1641222296342,0.3893,3805.6,3805.5,0.025592]
[1641222296941,0.619291,3805.6,3805.1,2.49237651]
[1641222297142,0.619291,3805.6,3805.5,0.55677842]
[1641222297344,0.3893,3805.6,3805.5,0.58237042]
[1641222298442,0.619291,3805.6,3805.5,0.55677842]
[1641222298644,0.3893,3805.6,3805.5,0.55677842]
[1641222299445,0.619291,3805.6,3805.5,0.55677842]
[1641222299946,0.619291,3805.6,3805.3,1.18437651]
[1641222300146,0.3893,3805.6,3805.3,1.18437651]
[1641222300345,0.3893,3805.6,3805.4,0.025592]
[1641222300744,0.3893,3805.6,3805.5,1.308]
[1641222301245,3.42478425,3805.6,3805.3,1.18437651]
[1641222301446,0.192,3805.4,3804.1,5.78269489]
[1641222301647,0.192,3804.7,3804.1,3.71388774]
[1641222301846,2.00479,3804.4,3804.1,3.71388774]
[1641222302044,2.00479,3804.4,3804.1,0.74258115]
[1641222302846,0.229991,3804.3,3804.1,0.74258115]
[1641222303247,2.00479,3804.4,3804.2,1.308]
[1641222303745,0.229991,3804.3,3804.2,1.308]
[1641222304448,0.229991,3804.3,3803.5,3.31279]
[1641222304747,0.229991,3804.3,3803.5,2.00479]
[1641222304947,0.229991,3804.3,3803.5,3.31279]
[1641222305148,2.00479,3804.4,3804.1,1.308]
[1641222305348,0.229991,3804.3,3804.1,1.308]
[1641222305749,0.69600303,3804.5,3804.2,0.025592]
[1641222305948,2.61385025,3804.7,3804.4,1.308]
[1641222306148,2.61385025,3804.7,3804.3,2.00479]
[1641222306349,0.229991,3804.6,3804.3,2.00479]
[1641222306751,0.229991,3804.6,3804.5,1.308]
[1641222307150,0.128157,3804.8,3804.5,1.308]
[1641222307350,0.229991,3804.7,3804.3,2.00479]
[1641222307750,0.229991,3804.7,3804.6,1.308]
[1641222307949,0.128157,3804.8,3804.6,1.308]
[1641222308150,0.128157,3804.8,3804.6,1.333592]
[1641222308550,0.229991,3804.7,3804.6,1.308]
[1641222308751,0.128157,3804.8,3804.3,2.00479]
[1641222310952,0.128157,3804.8,3804.3,3.4860136]
[1641222311456,2.00479,3805.2,3804.7,1.308]
[1641222311654,2.00479,3805.2,3804.3,3.4860136]
[1641222311856,2.00479,3805.2,3805.1,1.308]
[1641222312053,2.234781,3805.2,3805.1,1.308]
[1641222312553,2.00479,3805.2,3805.1,1.333592]
[1641222313356,2.00479,3805.6,3805.1,1.333592]
[1641222313557,2.00479,3805.6,3805.5,1.308]
[1641222313757,2.00479,3805.6,3805.5,1.333592]
[1641222314057,1.2722732,3805.9,3805.5,1.333592]
[1641222314257,0.229991,3805.6,3805.5,1.308]
[1641222314460,0.128157,3805.9,3805.5,1.308]
[1641222314658,0.128157,3805.9,3805.8,1.308]
[1641222314857,0.128157,3805.9,3805.8,1.9201]
[1641222315458,0.358148,3805.9,3805.8,1.9201]
[1641222315759,0.358148,3805.9,3805.8,0.6121]
[1641222315960,0.358148,3805.9,3805.3,2.49300485]
[1641222316560,0.128157,3805.9,3805.3,1.18500485]
[1641222316760,0.128157,3805.9,3805.6,1.308]
[1641222316963,0.128157,3805.9,3805.3,1.18500485]
[1641222316964,0.229991,3805.8,3805.3,1.18500485]
[1641222317163,0.229991,3805.8,3805.5,0.88926107]
[1641222317762,0.229991,3805.8,3805.6,1.308]
[1641222317962,0.229991,3805.8,3805.5,0.88926107]
[1641222318463,2.613253,3805.6,3805.5,0.88926107]
[1641222318864,2.843244,3805.6,3805.5,0.88926107]
[1641222319164,2.613253,3805.6,3805.5,0.88926107]
[1641222319364,14.642253,3805.6,3804.5,0.74258115]
[1641222319566,0.192,3804.6,3804.1,2.97130659]
[1641222319765,0.192,3804.3,3804.1,2.97130659]
[1641222319965,14.08422926,3804.2,3803.7,3.71445479]
[1641222320169,15.44158,3803.8,3803.7,3.06585479]
[1641222320367,15.95518,3803.8,3802.8,4.41740978]
[1641222320566,2.61497685,3803.0,3802.8,4.41740978]
[1641222320766,0.229991,3802.9,3802.6,2.00479]
[1641222320966,0.229991,3802.9,3802.7,1.308]
[1641222321367,0.229991,3802.9,3802.2,2.00479]
[1641222321570,1.11159884,3802.9,3802.7,1.308]
[1641222321767,1.23975584,3802.9,3802.7,1.308]
[1641222322170,2.88639784,3802.9,3802.8,0.54826022]
[1641222322368,3.11638884,3802.9,3802.8,0.52266822]
[1641222322569,3.11638884,3802.9,3802.8,1.83066822]
[1641222322974,2.88639784,3802.9,3802.8,1.85626022]
[1641222323177,2.88639784,3802.9,3802.8,1.83066822]
[1641222324178,3.11638884,3802.9,3802.8,1.83066822]
[1641222324477,2.88639784,3802.9,3802.8,1.83066822]
[1641222325278,2.88639784,3802.9,3802.8,1.85626022]
[1641222325578,2.61497685,3803.0,3802.8,1.85626022]
[1641222325779,2.61454397,3803.6,3802.9,1.5]
[1641222325980,2.00479,3803.8,3803.5,1.308]
[1641222326180,2.00479,3803.8,3803.6,0.025592]
[1641222326881,2.00479,3803.8,3803.4,1.308]
[1641222326882,2.61472948,3803.7,3803.4,1.308]
[1641222327481,0.229991,3803.6,3803.4,1.308]
[1641222327781,0.229991,3803.6,3803.5,1.308]
[1641222328384,0.229991,3803.6,3803.5,0.5226298]
[1641222328683,0.229991,3803.6,3803.5,1.8306298]
[1641222328884,0.229991,3803.6,3803.5,0.5226298]
[1641222329483,3.6479436,3803.7,3803.5,0.5482218]
[1641222329684,2.61472948,3803.7,3803.6,1.308]
[1641222329888,2.00479,3803.8,3803.6,1.308]
[1641222330385,2.00479,3803.8,3803.6,1.333592]
[1641222330785,2.00479,3803.8,3803.7,0.5226298]
[1641222331785,2.234781,3803.8,3803.7,0.5226298]
[1641222333684,2.00479,3803.8,3803.7,0.5482218]
[1641222334086,4.84929404,3803.8,3803.7,0.5226298]
[1641222335589,4.84929404,3803.8,3803.2,1.18623831]
[1641222336191,4.84929404,3803.8,3803.7,1.308]
[1641222336991,4.61930304,3803.8,3803.7,1.308]
[1641222337492,2.00479,3803.8,3803.7,1.308]
[1641222337689,2.00479,3803.8,3803.7,1.8918]
[1641222337891,2.00479,3803.8,3803.7,1.917392]
[1641222338291,2.00479,3803.8,3803.7,0.609392]
[1641222339894,2.234781,3803.8,3803.7,0.5838]
[1641222340096,2.234781,3803.8,3803.5,1.308]
[1641222340292,2.00479,3803.8,3803.6,0.025592]
[1641222341093,2.00479,3803.8,3803.7,1.308]
[1641222343798,2.234781,3803.8,3803.7,1.308]
[1641222343996,2.00479,3803.8,3803.7,1.308]
[1641222344997,2.234781,3803.8,3803.1,2.88952156]
[1641222345201,2.234781,3803.8,3803.1,4.19752156]
[1641222345399,2.00479,3803.8,3803.1,2.88952156]
[1641222345600,2.00479,3803.8,3803.7,1.308]
[1641222345800,2.00479,3803.8,3803.1,2.00479]
[1641222346500,2.00479,3803.8,3803.2,1.308]
[1641222347102,0.192,3803.6,3803.2,1.308]
[1641222347301,2.8068394,3803.3,3802.9,0.88473156]
[1641222347601,0.128157,3803.2,3802.9,0.88473156]
[1641222347804,0.229991,3803.1,3802.9,0.88473156]
[1641222348005,0.229991,3803.1,3802.9,2.19273156]
[1641222348204,4.00958,3803.0,3802.9,1.308]
[1641222349404,4.00958,3803.0,3802.9,1.333592]
[1641222349405,2.00479,3803.0,3802.9,1.333592]
[1641222349803,2.00479,3803.0,3802.9,1.308]
[1641222350006,2.234781,3803.0,3802.2,0.88473156]
[1641222350204,2.8073377,3802.5,3802.4,0.88473156]
[1641222350407,2.6153377,3802.5,3802.4,0.88473156]
[1641222350604,2.8073377,3802.5,3802.4,0.88473156]
[1641222350804,2.6153377,3802.5,3802.4,0.88473156]
[1641222351005,2.8453287,3802.5,3802.4,0.88473156]
[1641222351205,3.91664758,3802.5,3802.4,0.88473156]
[1641222351408,3.68665658,3802.5,3802.4,0.88473156]
[1641222351607,2.00479,3803.0,3802.4,0.025592]
[1641222351809,2.00479,3803.0,3802.4,0.758692]
[1641222352005,2.00479,3803.0,3802.4,0.7331]
[1641222352206,3.22300085,3803.0,3802.5,1.5]
[1641222352407,3.22300085,3803.0,3802.9,1.308]
[1641222352607,2.00479,3803.0,3802.9,1.333592]
[1641222353908,2.00479,3803.0,3802.9,1.308]
[1641222354610,2.00479,3803.0,3802.9,0.025592]
[1641222354809,2.00479,3803.0,3802.9,1.333592]
[1641222355308,2.234781,3803.0,3802.9,1.308]
[1641222355512,2.00479,3803.0,3802.9,0.025592]
[1641222356010,2.00479,3803.0,3802.9,1.308]
[1641222356510,2.362938,3803.0,3802.9,0.025592]
[1641222356711,2.362938,3803.0,3802.6,1.308]
[1641222356913,2.362938,3803.0,3802.5,1.308]
[1641222357111,2.362938,3803.0,3802.3,2.00479]
[1641222357313,2.362938,3803.0,3802.3,3.31279]
[1641222357910,2.362938,3803.0,3802.4,1.5]
[1641222358113,2.00479,3803.0,3802.9,1.308]
[1641222358312,2.234781,3803.0,3802.9,1.308]
[1641222358512,2.00479,3803.0,3802.9,1.333592]
[1641222358713,2.61466763,3803.5,3802.9,2.154692]
[1641222358914,2.61466763,3803.5,3803.4,1.308]
[1641222359115,2.84465863,3803.5,3803.4,1.308]
[1641222359915,2.61466763,3803.5,3803.4,1.333592]
[1641222360115,2.84465863,3803.5,3802.9,1.308]
[1641222360617,2.84465863,3803.5,3802.8,2.00479]
[1641222360618,0.192,3803.0,3802.8,2.00479]
[1641222360823,14.04727583,3803.0,3802.3,0.88473156]
[1641222361016,0.192,3802.7,3802.4,0.88473156]
[1641222361218,0.128157,3802.6,3802.4,0.88473156]
[1641222361815,0.229991,3802.5,3802.4,0.88473156]
[1641222362015,0.229991,3802.5,3802.4,2.19273156]
[1641222362215,0.229991,3802.5,3802.4,0.88473156]
[1641222362616,1.29778715,3802.5,3802.4,2.21832356]
[1641222362818,0.5491,3803.4,3802.4,1.333592]
[1641222363118,2.00479,3803.6,3803.3,1.308]
[1641222363316,0.358148,3803.5,3803.3,0.823]
[1641222363516,0.128157,3803.5,3803.3,0.823]
[1641222363717,0.128157,3803.5,3803.4,1.308]
[1641222363917,0.128157,3803.5,3803.3,0.823]
[1641222364116,0.229991,3803.4,3803.3,0.823]
[1641222364318,0.128157,3803.5,3803.3,0.848592]
[1641222364519,0.128157,3803.5,3803.3,0.823]
[1641222364919,0.229991,3803.4,3803.3,0.823]
[1641222366718,0.128157,3803.5,3803.3,0.848592]
[1641222366918,3.10631686,3803.6,3803.4,1.308]
[1641222367117,0.229991,3803.5,3803.4,1.308]
[1641222367317,3.10631686,3803.6,3803.4,1.308]
[1641222368219,0.229991,3803.5,3803.4,1.308]
[1641222368618,3.10631686,3803.6,3803.4,1.308]
[1641222368821,3.10631686,3803.6,3803.3,0.823]
[1641222369019,0.229991,3803.5,3803.2,1.308]
[1641222370021,0.229991,3803.5,3803.3,0.025592]
[1641222370222,3.10631686,3803.6,3803.2,1.308]
[1641222371026,3.10631686,3803.6,3802.8,2.00479]
[1641222371222,3.10631686,3803.6,3803.0,1.308]
[1641222371423,3.10631686,3803.6,3802.8,2.00479]
[1641222371622,2.00479,3803.6,3803.5,1.308]
[1641222372023,2.00479,3803.6,3803.3,0.7964]
[1641222372625,0.229991,3803.5,3803.3,0.7964]
[1641222372828,0.229991,3803.5,3803.0,1.308]
[1641222373227,2.00479,3803.6,3802.8,2.00479]
[1641222373426,2.00479,3803.6,3803.0,1.308]
[1641222373827,2.90298266,3803.6,3803.0,1.308]
[1641222374025,2.90298266,3803.6,3802.8,2.00479]
[1641222374426,2.90298266,3803.6,3803.0,1.308]
[1641222374627,2.90298266,3803.6,3802.8,3.31279]
[1641222375127,0.55706008,3803.5,3803.3,1.18623831]
[1641222375325,1e-08,3803.5,3803.4,1.333592]
[1641222375526,1.14717605,3803.6,3803.4,1.333592]
[1641222375827,1.14717605,3803.7,3803.4,2.51983031]
[1641222376130,7.605e-05,3803.7,3803.6,1.308]
[1641222376328,1.43397006,3804.0,3803.6,2.833592]
[1641222376529,1.43397006,3804.0,3803.9,1.308]
[1641222377229,1.43397006,3804.0,3803.9,1.333592]
[1641222377430,2.00479,3804.1,3803.9,1.333592]
[1641222378231,0.229991,3804.0,3803.9,1.308]
[1641222378432,1.43397006,3804.5,3803.9,1.308]
[1641222378433,1.43397006,3804.5,3803.9,1.333592]
[1641222378734,1.43397006,3804.6,3804.4,1.308]
[1641222379133,0.229991,3804.5,3804.4,1.308]
[1641222379332,1.43397006,3804.6,3804.4,1.308]
[1641222379533,5.7827925,3804.7,3804.5,0.89108974]
[1641222379735,5.7827925,3804.7,3804.6,1.308]
[1641222380135,6.0127835,3804.7,3804.6,1.308]
[1641222381237,6.0127835,3804.7,3804.5,0.89108974]
[1641222381436,11.24,3804.5,3803.5,3.31279]
[1641222381638,11.24,3804.0,3803.5,3.31279]
[1641222381837,0.128157,3803.9,3803.5,3.31279]
[1641222382036,0.909457,3803.9,3803.5,3.31279]
[1641222383039,0.909457,3803.9,3803.5,2.00479]
[1641222383040,1.65499314,3803.9,3803.5,2.00479]
[1641222383639,1.65499314,3803.9,3803.8,1.308]
[1641222383843,1.88498414,3803.9,3803.8,1.308]
[1641222384655,1.88498414,3803.9,3803.6,1.308]
[1641222384843,1.88498414,3803.9,3803.5,2.00479]
[1641222385043,1.88498414,3803.9,3803.6,1.308]
[1641222385443,1.88498414,3803.9,3803.8,1.308]
[1641222386244,1.65499314,3803.9,3803.8,1.333592]
[1641222386843,1.88498414,3803.9,3803.8,1.308]
[1641222387044,1.88498414,3803.9,3803.5,2.00479]
[1641222387345,11.24,3803.8,3803.5,3.31279]
[1641222387546,2.79594688,3803.9,3803.5,3.31279]
[1641222387945,2.79594688,3803.9,3803.5,2.00479]
[1641222388346,1.14095374,3803.8,3803.5,2.00479]
[1641222388545,1.14095374,3803.8,3803.4,1.18800537]
[1641222388746,12.74,3803.6,3802.0,3.70712194]
[1641222388947,11.24,3802.8,3802.0,3.70712194]
[1641222389144,2.61509024,3803.2,3802.0,3.70712194]
[1641222389145,0.128157,3802.9,3802.0,3.70712194]
[1641222389547,0.128157,3802.9,3802.0,2.96555438]
[1641222389747,1.32316719,3802.9,3802.0,2.96555438]
[1641222390552,1.19501019,3802.9,3802.3,1.5]
[1641222390754,1.19501019,3802.9,3802.3,2.2958]
[1641222391556,1.19501019,3802.9,3802.3,0.7958]
[1641222391754,0.128157,3802.8,3802.5,1.48531165]
[1641222391955,0.229991,3802.7,3802.5,1.48531165]
[1641222392554,15.86023426,3802.6,3802.5,1.48531165]
[1641222392756,14.74479,3802.6,3802.2,0.99498659]
[1641222392957,1.5,3802.4,3802.2,0.99498659]
[1641222393256,0.229991,3802.3,3802.2,0.99498659]
[1641222393455,2.84565528,3802.3,3802.2,0.99498659]
[1641222393959,2.84565528,3802.3,3801.6,0.74291513]
[1641222394356,2.84565528,3802.3,3800.8,4.24770513]
[1641222394557,2.84565528,3802.3,3801.5,2.00479]
[1641222394756,2.84565528,3802.3,3801.5,2.79439]
[1641222394958,3.62245922,3802.3,3801.5,2.79439]
[1641222395957,3.62245922,3802.3,3801.5,4.29439]
[1641222396159,3.62245922,3802.3,3801.5,2.79439]
[1641222396357,3.62245922,3802.3,3801.6,0.39214266]
[1641222397958,3.62245922,3802.3,3801.6,1.89214266]
[1641222398559,3.62245922,3802.3,3801.6,0.39214266]
[1641222398759,0.77680394,3802.3,3801.8,1.5]
[1641222398959,0.77680394,3802.3,3802.0,1.5]
[1641222399161,0.77680394,3802.3,3802.2,1.1887466]
[1641222400562,1.1369112,3802.5,3802.2,3.50479]
[1641222400761,4.47488347,3802.9,3802.4,1.5]
[1641222400762,1.13723804,3802.8,3802.4,1.5]
[1641222400962,1.13723804,3802.8,3802.4,0.8232]
[1641222402462,1.13723804,3802.8,3802.2,2.39693266]
[1641222402663,1.11683193,3802.9,3802.5,0.39214266]